fUST/lending_fUST_20241114
["ID","MTS","AMOUNT","RATE_DAILY","PERIOD"]
[342222351,1731597063631,-500.0,0.0001726,2]
[342222352,1731597063641,-500.0,0.0001726,2]
[342222353,1731597063651,-500.0,0.0001726,2]
[342222354,1731597063661,-500.0,0.0001726,2]
[342222355,1731597063672,-568.0,0.0001726,2]
[342222356,1731597063682,-500.0,0.0001726,2]
[342222357,1731597063695,-500.0,0.0001726,2]
[342222358,1731597063715,-543.52,0.0001726,2]
[342222359,1731597063732,-853.04,0.0001726,2]
[342222360,1731597063749,-615.67,0.0001726,2]
[342222361,1731597063761,-592.303162,0.0001726,2]
[342222362,1731597063772,-592.303162,0.0001726,2]
[342222363,1731597063785,-500.0,0.0001726,2]
[342222364,1731597063807,-159.574477,0.0001726,2]
[342222365,1731597063825,-217.42632039,0.0001726,2]
[342222366,1731597063835,-151.0,0.0001726,2]
[342222367,1731597063845,-500.0,0.0001726,2]
[342222368,1731597063855,-500.0,0.0001726,2]
[342222369,1731597063866,-516.91,0.0001726,2]
[342222370,1731597063876,-500.0,0.0001726,2]
[342222371,1731597063886,-554.76081895,0.0001726,2]
[342222372,1731597063897,-151.0,0.0001726,2]
[342222373,1731597063907,-151.0,0.0001726,2]
[342222374,1731597063918,-521.17,0.0001726,2]
[342222375,1731597063929,-500.0,0.0001726,2]
[342222376,1731597063939,-304.568889,0.0001726,2]
[342222377,1731597063952,-349.266067,0.0001726,2]
[342222378,1731597063963,-304.568889,0.0001726,2]
[342222379,1731597063983,-349.266067,0.0001726,2]
[342222380,1731597064004,-507.27702477,0.0001726,2]
[342222381,1731597064016,-373.97834825,0.0001726,2]
[342222382,1731597064026,-500.0,0.0001726,2]
[342222383,1731597064036,-714.41,0.0001726,2]
[342222384,1731597064046,-555.5,0.0001726,2]
[342222385,1731597064056,-542.83,0.0001726,2]
[342222386,1731597064066,-500.0,0.0001726,2]
[342222387,1731597064076,-497.400473,0.0001726,2]
[342222388,1731597064086,-497.400475,0.0001726,2]
[342222389,1731597064096,-517.50155385,0.0001726,2]
[342222390,1731597064106,-500.0,0.0001726,2]
[342222391,1731597064115,-813.13,0.0001726,2]
[342222392,1731597064125,-500.0,0.0001726,2]
[342222393,1731597064135,-500.0,0.0001726,2]
[342222394,1731597064144,-545.22,0.0001726,2]
[342222395,1731597064154,-500.0,0.0001726,2]
[342222396,1731597064163,-500.0,0.0001726,2]
[342222397,1731597064172,-500.0,0.0001726,2]
[342222398,1731597064182,-500.0,0.0001726,2]
[342222399,1731597064191,-558.82,0.0001726,2]
[342222400,1731597064201,-500.0,0.0001726,2]
[342222401,1731597064210,-500.0,0.0001726,2]
[342222402,1731597064220,-273.44152,0.0001726,2]
[342222403,1731597064230,-500.0,0.0001726,2]
[342222404,1731597064239,-500.0,0.0001726,2]
[342222405,1731597064253,-500.0,0.0001726,2]
[342222406,1731597064262,-500.0,0.0001726,2]
[342222407,1731597064271,-500.0,0.0001726,2]
[342222408,1731597064281,-500.0,0.0001726,2]
[342222409,1731597064291,-500.0,0.0001726,2]
[342222410,1731597064300,-570.38,0.0001726,2]
[342222411,1731597064310,-638.45,0.0001726,2]
[342222412,1731597064319,-548.09,0.0001726,2]
[342222413,1731597064329,-500.0,0.0001726,2]
[342222414,1731597064338,-500.0,0.0001726,2]
[342222415,1731597064348,-597.15,0.0001726,2]
[342222416,1731597064358,-761.287904,0.0001726,2]
[342222417,1731597064368,-761.287904,0.0001726,2]
[342222418,1731597064378,-500.0,0.0001726,2]
[342222419,1731597064388,-761.287904,0.0001726,2]
[342222420,1731597064398,-761.287898,0.0001726,2]
[342222421,1731597064408,-500.0,0.0001726,2]
[342222422,1731597064418,-500.0,0.0001726,2]
[342222423,1731597064432,-500.0,0.0001726,2]
[342222424,1731597064442,-500.0,0.0001726,2]
[342222425,1731597064452,-777.17,0.0001726,2]
[342222426,1731597064461,-500.0,0.0001726,2]
[342222427,1731597064473,-500.0,0.0001726,2]
[342222428,1731597064484,-500.0,0.0001726,2]
[342222429,1731597064498,-364.95920801,0.0001726,2]
[342222430,1731597064509,-500.0,0.0001726,2]
[342222431,1731597064519,-500.0,0.0001726,2]
[342222432,1731597064529,-640.94,0.0001726,2]
[342222433,1731597064539,-500.0,0.0001726,2]
[342222434,1731597064549,-500.0,0.0001726,2]
[342222435,1731597064559,-500.0,0.0001726,2]
[342222436,1731597064569,-539.44,0.0001726,2]
[342222437,1731597064579,-616.05,0.0001726,2]
[342222438,1731597064588,-500.0,0.0001726,2]
[342222439,1731597064598,-350.505597,0.0001726,2]
[342222440,1731597064608,-535.28,0.0001726,2]
[342222441,1731597064618,-617.75,0.0001726,2]
[342222442,1731597064628,-350.505601,0.0001726,2]
[342222443,1731597064638,-500.0,0.0001726,2]
[342222444,1731597064648,-210.87676,0.0001726,2]
[342222445,1731597064657,-500.0,0.0001726,2]
[342222446,1731597064668,-500.0,0.0001726,2]
[342222447,1731597064678,-210.87675,0.0001726,2]
[342222448,1731597064688,-500.0,0.0001726,2]
[342222449,1731597064698,-500.0,0.0001726,2]
[342222450,1731597064707,-636.71,0.0001726,2]
[342222451,1731597064717,-500.0,0.0001726,2]
[342222452,1731597064726,-500.0,0.0001726,2]
[342222453,1731597064736,-500.0,0.0001726,2]
[342222454,1731597064748,-432.78234936,0.0001726,2]
[342222455,1731597064758,-151.0,0.0001726,2]
[342222456,1731597064768,-1592.85,0.0001726,2]
[342222457,1731597064778,-291.443348,0.0001726,2]
[342222458,1731597064788,-291.443356,0.0001726,2]
[342222459,1731597064798,-1049.38,0.0001726,2]
[342222460,1731597064807,-500.0,0.0001726,2]
[342222461,1731597064817,-589.52,0.0001726,2]
[342222462,1731597064827,-500.0,0.0001726,2]
[342222463,1731597064837,-500.0,0.0001726,2]
[342222464,1731597064847,-500.0,0.0001726,2]
[342222465,1731597064857,-500.0,0.0001726,2]
[342222466,1731597064867,-500.0,0.0001726,2]
[342222467,1731597064877,-788.8,0.0001726,2]
[342222468,1731597064888,-500.0,0.0001726,2]
[342222469,1731597064898,-950.02,0.0001726,2]
[342222470,1731597064908,-692.64,0.0001726,2]
[342222471,1731597064918,-500.0,0.0001726,2]
[342222472,1731597064928,-1705.94,0.0001726,2]
[342222473,1731597064940,-500.0,0.0001726,2]
[342222474,1731597064949,-500.0,0.0001726,2]
[342222475,1731597064959,-500.0,0.0001726,2]
[342222476,1731597064970,-500.0,0.0001726,2]
[342222477,1731597064980,-1211.36,0.0001726,2]
[342222478,1731597064990,-1341.99,0.0001726,2]
[342222479,1731597065003,-500.0,0.0001726,2]
[342222480,1731597065013,-500.0,0.0001726,2]
[342222481,1731597065024,-1503.18,0.0001726,2]
[342222482,1731597065034,-585.8,0.0001726,2]
[342222483,1731597065044,-500.0,0.0001726,2]
[342222484,1731597065054,-500.0,0.0001726,2]
[342222485,1731597065064,-500.0,0.0001726,2]
[342222486,1731597065074,-500.0,0.0001726,2]
[342222487,1731597065084,-552.82391755,0.0001726,2]
[342222488,1731597065094,-500.0,0.0001726,2]
[342222489,1731597065104,-882.36,0.0001726,2]
[342222490,1731597065115,-500.0,0.0001726,2]
[342222491,1731597065126,-541.92334562,0.0001726,2]
[342222492,1731597065135,-500.0,0.0001726,2]
[342222493,1731597065145,-500.0,0.0001726,2]
[342222494,1731597065155,-500.0,0.0001726,2]
[342222495,1731597065165,-500.0,0.0001726,2]
[342222496,1731597065176,-500.0,0.0001726,2]
[342222497,1731597065186,-1850.19,0.0001726,2]
[342222498,1731597065196,-754.96,0.0001726,2]
[342222499,1731597065206,-671.15,0.0001726,2]
[342222500,1731597065216,-961.33,0.0001726,2]
[342222501,1731597065226,-500.0,0.0001726,2]
[342222502,1731597065236,-500.0,0.0001726,2]
[342222503,1731597065250,-522.60043523,0.0001726,2]
[342222504,1731597065260,-500.0,0.0001726,2]
[342222505,1731597065271,-1713.05,0.0001726,2]
[342222506,1731597065281,-500.0,0.0001726,2]
[342222507,1731597065290,-623.84,0.0001726,2]
[342222508,1731597065300,-500.0,0.0001726,2]
[342222509,1731597065311,-500.0,0.0001726,2]
[342222510,1731597065430,-500.0,0.0001726,2]
[342222511,1731597065455,-1026.35,0.0001726,2]
[342222512,1731597065465,-500.0,0.0001726,2]
[342222513,1731597065475,-500.0,0.0001726,2]
[342222514,1731597065485,-2653.38,0.0001726,2]
[342222515,1731597065494,-684.68,0.0001726,2]
[342222516,1731597065509,-651.58,0.0001726,2]
[342222517,1731597065519,-934.5,0.0001726,2]
[342222518,1731597065529,-654.07,0.0001726,2]
[342222519,1731597065539,-913.47,0.0001726,2]
[342222520,1731597065549,-500.0,0.0001726,2]
[342222521,1731597065558,-500.0,0.0001726,2]
[342222522,1731597065567,-500.0,0.0001726,2]
[342222523,1731597065577,-500.0,0.0001726,2]
[342222524,1731597065587,-1899.22,0.0001726,2]
[342222525,1731597065596,-500.0,0.0001726,2]
[342222526,1731597065606,-3864.77,0.0001726,2]
[342222527,1731597065615,-643.63,0.0001726,2]
[342222528,1731597065625,-726.19,0.0001726,2]
[342222529,1731597065635,-500.0,0.0001726,2]
[342222530,1731597065645,-585.4,0.0001726,2]
[342222531,1731597065655,-500.0,0.0001726,2]
[342222532,1731597065666,-500.0,0.0001726,2]
[342222533,1731597065675,-1279.89,0.0001726,2]
[342222534,1731597065686,-500.0,0.0001726,2]
[342222535,1731597065696,-500.0,0.0001726,2]
[342222536,1731597065706,-552.98,0.0001726,2]
[342222537,1731597065716,-500.0,0.0001726,2]
[342222538,1731597065726,-616.87,0.0001726,2]
[342222539,1731597065737,-584.67,0.0001726,2]
[342222540,1731597065750,-642.81,0.0001726,2]
[342222541,1731597065760,-500.0,0.0001726,2]
[342222542,1731597065770,-500.0,0.0001726,2]
[342222543,1731597065779,-6521.63,0.0001726,2]
[342222544,1731597065789,-500.0,0.0001726,2]
[342222545,1731597065797,-779.32,0.0001726,2]
[342222546,1731597065807,-500.0,0.0001726,2]
[342222547,1731597065817,-271.13778911,0.0001726,2]
[342222548,1731597065826,-11398.1,0.0001726,2]
[342222549,1731597065836,-754.56,0.0001726,2]
[342222550,1731597065847,-500.0,0.0001726,2]
[342222551,1731597065858,-500.0,0.0001726,2]
[342222552,1731597065867,-500.0,0.0001726,2]
[342222553,1731597065878,-500.0,0.0001726,2]
[342222554,1731597065887,-14354.82,0.0001726,2]
[342222555,1731597065896,-500.0,0.0001726,2]
[342222556,1731597065906,-3874.05,0.0001726,2]
[342222557,1731597065915,-500.0,0.0001726,2]
[342222558,1731597065925,-563.21,0.0001726,2]
[342222559,1731597065934,-500.0,0.0001726,2]
[342222560,1731597065944,-501.78385684,0.00017321,2]
[342222561,1731597065953,-1000.0,0.00017321,2]
[342222562,1731597065963,-1000.0,0.00017321,2]
[342222563,1731597065972,-1000.0,0.00017321,2]
[342222564,1731597065981,-1000.0,0.00017321,2]
[342222565,1731597065990,-338.906,0.0001747,2]
[342222566,1731597066003,-370.25168127,0.00017521,2]
[342222567,1731597066013,-1000.0,0.00017521,2]
[342222568,1731597066023,-1000.0,0.00017521,2]
[342222569,1731597066032,-1003.13943255,0.00017521,2]
[342222570,1731597066041,-1000.0,0.00017521,2]
[342222571,1731597066051,-773.257391,0.00017521,2]
[342222572,1731597066060,-773.257391,0.00017521,2]
[342222573,1731597066070,-638.38968,0.00017521,2]
[342222574,1731597066080,-638.38968,0.00017521,2]
[342222575,1731597066090,-500.0,0.00017534,2]
[342222576,1731597066100,-500.0,0.00017534,2]
[342222577,1731597066110,-500.0,0.00017534,2]
[342222578,1731597066120,-568.0,0.00017534,2]
[342222579,1731597066129,-500.0,0.00017534,2]
[342222580,1731597066138,-304.61456163,0.00017534,2]
[342222581,1731597066147,-543.52,0.00017534,2]
[342222582,1731597066156,-853.04,0.00017534,2]
[342222583,1731597066166,-615.67,0.00017534,2]
[342222584,1731597066176,-500.0,0.00017534,2]
[342222585,1731597066186,-151.0,0.00017534,2]
[342222586,1731597066196,-500.0,0.00017534,2]
[342222587,1731597066205,-500.0,0.00017534,2]
[342222588,1731597066215,-516.91,0.00017534,2]
[342222589,1731597066224,-500.0,0.00017534,2]
[342222590,1731597066233,-173.925541,0.00017534,2]
[342222591,1731597066243,-521.17,0.00017534,2]
[342222592,1731597066256,-304.568889,0.00017534,2]
[342222593,1731597066267,-349.266067,0.00017534,2]
[342222594,1731597066276,-304.568892,0.00017534,2]
[342222595,1731597066288,-349.26606,0.00017534,2]
[342222596,1731597066305,-714.41,0.00017534,2]
[342222597,1731597066323,-555.5,0.00017534,2]
[342222598,1731597066335,-542.83,0.00017534,2]
[342222599,1731597066345,-500.0,0.00017534,2]
[342222600,1731597066355,-500.0,0.00017534,2]
[342222601,1731597066365,-813.13,0.00017534,2]
[342222602,1731597066375,-500.0,0.00017534,2]
[342222603,1731597066385,-500.0,0.00017534,2]
[342222604,1731597066395,-545.22,0.00017534,2]
[342222605,1731597066404,-234.62215062,0.00017534,2]
[342222606,1731597066415,-500.0,0.00017534,2]
[342222607,1731597066428,-500.0,0.00017534,2]
[342222608,1731597066437,-500.0,0.00017534,2]
[342222609,1731597066447,-558.82,0.00017534,2]
[342222610,1731597066457,-500.0,0.00017534,2]
[342222611,1731597066469,-500.0,0.00017534,2]
[342222612,1731597066479,-500.0,0.00017534,2]
[342222613,1731597066489,-500.0,0.00017534,2]
[342222614,1731597066504,-500.0,0.00017534,2]
[342222615,1731597066515,-500.0,0.00017534,2]
[342222616,1731597066526,-500.0,0.00017534,2]
[342222617,1731597066536,-500.0,0.00017534,2]
[342222618,1731597066546,-500.0,0.00017534,2]
[342222619,1731597066556,-570.38,0.00017534,2]
[342222620,1731597066566,-638.45,0.00017534,2]
[342222621,1731597066576,-548.09,0.00017534,2]
[342222622,1731597066586,-500.0,0.00017534,2]
[342222623,1731597066596,-500.0,0.00017534,2]
[342222624,1731597066605,-597.15,0.00017534,2]
[342222625,1731597066615,-372.30942445,0.00017534,2]
[342222626,1731597066624,-500.0,0.00017534,2]
[342222627,1731597066634,-500.0,0.00017534,2]
[342222628,1731597066643,-500.0,0.00017534,2]
[342222629,1731597066653,-500.0,0.00017534,2]
[342222630,1731597066663,-777.17,0.00017534,2]
[342222631,1731597066672,-500.0,0.00017534,2]
[342222632,1731597066682,-500.0,0.00017534,2]
[342222633,1731597066691,-500.0,0.00017534,2]
[342222634,1731597066700,-500.0,0.00017534,2]
[342222635,1731597066710,-500.0,0.00017534,2]
[342222636,1731597066719,-640.94,0.00017534,2]
[342222637,1731597066729,-500.0,0.00017534,2]
[342222638,1731597066738,-500.0,0.00017534,2]
[342222639,1731597066750,-500.0,0.00017534,2]
[342222640,1731597066759,-539.44,0.00017534,2]
[342222641,1731597066770,-616.05,0.00017534,2]
[342222642,1731597066780,-438.74721566,0.00017534,2]
[342222643,1731597066790,-535.28,0.00017534,2]
[342222644,1731597066800,-617.75,0.00017534,2]
[342222645,1731597066810,-500.0,0.00017534,2]
[342222646,1731597066820,-500.0,0.00017534,2]
[342222647,1731597066830,-500.0,0.00017534,2]
[342222648,1731597066839,-500.0,0.00017534,2]
[342222649,1731597066849,-500.0,0.00017534,2]
[342222650,1731597066859,-636.71,0.00017534,2]
[342222651,1731597066868,-500.0,0.00017534,2]
[342222652,1731597066878,-500.0,0.00017534,2]
[342222653,1731597066888,-500.0,0.00017534,2]
[342222654,1731597066898,-1592.85,0.00017534,2]
[342222655,1731597066908,-1049.38,0.00017534,2]
[342222656,1731597066918,-500.0,0.00017534,2]
[342222657,1731597066928,-589.52,0.00017534,2]
[342222658,1731597066938,-500.0,0.00017534,2]
[342222659,1731597066947,-450.14749278,0.00017534,2]
[342222660,1731597066959,-500.0,0.00017534,2]
[342222661,1731597066968,-500.0,0.00017534,2]
[342222662,1731597066978,-500.0,0.00017534,2]
[342222663,1731597066987,-788.8,0.00017534,2]
[342222664,1731597067001,-500.0,0.00017534,2]
[342222665,1731597067012,-950.02,0.00017534,2]
[342222666,1731597067022,-692.64,0.00017534,2]
[342222667,1731597067033,-500.0,0.00017534,2]
[342222668,1731597067043,-1705.94,0.00017534,2]
[342222669,1731597067054,-500.0,0.00017534,2]
[342222670,1731597067064,-500.0,0.00017534,2]
[342222671,1731597067073,-500.0,0.00017534,2]
[342222672,1731597067082,-1211.36,0.00017534,2]
[342222673,1731597067092,-500.0,0.00017534,2]
[342222674,1731597067103,-1341.99,0.00017534,2]
[342222675,1731597067113,-500.0,0.00017534,2]
[342222676,1731597067123,-513.66958399,0.00017534,2]
[342222677,1731597067134,-1503.18,0.00017534,2]
[342222678,1731597067145,-585.8,0.00017534,2]
[342222679,1731597067156,-500.0,0.00017534,2]
[342222680,1731597067165,-500.0,0.00017534,2]
[342222681,1731597067175,-500.0,0.00017534,2]
[342222682,1731597067184,-500.0,0.00017534,2]
[342222683,1731597067194,-500.0,0.00017534,2]
[342222684,1731597067204,-882.36,0.00017534,2]
[342222685,1731597067214,-585.73180423,0.00017534,2]
[342222686,1731597067223,-500.0,0.00017534,2]
[342222687,1731597067232,-500.0,0.00017534,2]
[342222688,1731597067241,-500.0,0.00017534,2]
[342222689,1731597067253,-160.25659626,0.00017534,2]
[342222690,1731597067266,-1850.19,0.00017534,2]
[342222691,1731597067276,-754.96,0.00017534,2]
[342222692,1731597067287,-671.15,0.00017534,2]
[342222693,1731597067296,-961.33,0.00017534,2]
[342222694,1731597067306,-500.0,0.00017534,2]
[342222695,1731597067316,-500.0,0.00017534,2]
[342222696,1731597067325,-500.0,0.00017534,2]
[342222697,1731597067334,-1713.05,0.00017534,2]
[342222698,1731597067344,-623.84,0.00017534,2]
[342222699,1731597067354,-500.0,0.00017534,2]
[342222700,1731597067363,-500.0,0.00017534,2]
[342222701,1731597067373,-1026.35,0.00017534,2]
[342222702,1731597067383,-207.74166486,0.00017534,2]
[342222703,1731597067392,-500.0,0.00017534,2]
[342222704,1731597067402,-2653.38,0.00017534,2]
[342222705,1731597067411,-684.68,0.00017534,2]
[342222706,1731597067421,-651.58,0.00017534,2]
[342222707,1731597067435,-934.5,0.00017534,2]
[342222708,1731597067444,-654.07,0.00017534,2]
[342222709,1731597067453,-913.47,0.00017534,2]
[342222710,1731597067464,-500.0,0.00017534,2]
[342222711,1731597067473,-500.0,0.00017534,2]
[342222712,1731597067482,-500.0,0.00017534,2]
[342222713,1731597067492,-1899.22,0.00017534,2]
[342222714,1731597067510,-500.0,0.00017534,2]
[342222715,1731597067519,-3864.77,0.00017534,2]
[342222716,1731597067528,-643.63,0.00017534,2]
[342222717,1731597067537,-726.19,0.00017534,2]
[342222718,1731597067547,-500.0,0.00017534,2]
[342222719,1731597067556,-585.4,0.00017534,2]
[342222720,1731597067565,-500.0,0.00017534,2]
[342222721,1731597067575,-500.0,0.00017534,2]
[342222722,1731597067584,-1279.89,0.00017534,2]
[342222723,1731597067594,-500.0,0.00017534,2]
[342222724,1731597067604,-552.98,0.00017534,2]
[342222725,1731597067615,-500.0,0.00017534,2]
[342222726,1731597067624,-616.87,0.00017534,2]
[342222727,1731597067633,-584.67,0.00017534,2]
[342222728,1731597067642,-642.81,0.00017534,2]
[342222729,1731597067651,-500.0,0.00017534,2]
[342222730,1731597067661,-500.0,0.00017534,2]
[342222731,1731597067671,-6521.63,0.00017534,2]
[342222732,1731597067682,-779.32,0.00017534,2]
[342222733,1731597067691,-11398.1,0.00017534,2]
[342222734,1731597067701,-754.56,0.00017534,2]
[342222735,1731597067710,-500.0,0.00017534,2]
[342222736,1731597067721,-500.0,0.00017534,2]
[342222737,1731597067730,-500.0,0.00017534,2]
[342222738,1731597067740,-500.0,0.00017534,2]
[342222739,1731597067752,-14354.82,0.00017534,2]
[342222740,1731597067761,-500.0,0.00017534,2]
[342222741,1731597067771,-3874.05,0.00017534,2]
[342222742,1731597067780,-500.0,0.00017534,2]
[342222743,1731597067790,-563.21,0.00017534,2]
[342222744,1731597067801,-500.0,0.00017534,2]
[342222745,1731597067810,-500.0,0.00017808,2]
[342222746,1731597067820,-500.0,0.00017808,2]
[342222747,1731597067830,-500.0,0.00017808,2]
[342222748,1731597067840,-568.0,0.00017808,2]
[342222749,1731597067849,-500.0,0.00017808,2]
[342222750,1731597067859,-543.52,0.00017808,2]
[342222751,1731597067869,-853.04,0.00017808,2]
[342222752,1731597067879,-615.67,0.00017808,2]
[342222753,1731597067889,-592.303162,0.00017808,2]
[342222754,1731597067898,-592.303162,0.00017808,2]
[342222755,1731597067907,-500.0,0.00017808,2]
[342222756,1731597067916,-538.97516045,0.00017808,2]
[342222757,1731597067926,-465.06306437,0.00017808,2]
[342222758,1731597067935,-516.91,0.00017808,2]
[342222759,1731597067945,-500.0,0.00017808,2]
[342222760,1731597067954,-151.0,0.00017808,2]
[342222761,1731597067964,-521.17,0.00017808,2]
[342222762,1731597067973,-714.41,0.00017808,2]
[342222763,1731597067983,-555.5,0.00017808,2]
[342222764,1731597067993,-542.83,0.00017808,2]
[342222765,1731597068008,-530.17039777,0.00017808,2]
[342222766,1731597068018,-424.88947907,0.00017808,2]
[342222767,1731597068028,-813.13,0.00017808,2]
[342222768,1731597068038,-500.0,0.00017808,2]
[342222769,1731597068047,-500.0,0.00017808,2]
[342222770,1731597068056,-545.22,0.00017808,2]
[342222771,1731597068066,-500.0,0.00017808,2]
[342222772,1731597068075,-500.0,0.00017808,2]
[342222773,1731597068085,-500.0,0.00017808,2]
[342222774,1731597068094,-558.82,0.00017808,2]
[342222775,1731597068103,-500.0,0.00017808,2]
[342222776,1731597068113,-500.0,0.00017808,2]
[342222777,1731597068123,-500.0,0.00017808,2]
[342222778,1731597068133,-500.0,0.00017808,2]
[342222779,1731597068142,-500.0,0.00017808,2]
[342222780,1731597068151,-500.0,0.00017808,2]
[342222781,1731597068161,-500.0,0.00017808,2]
[342222782,1731597068170,-500.0,0.00017808,2]
[342222783,1731597068179,-500.0,0.00017808,2]
[342222784,1731597068189,-570.38,0.00017808,2]
[342222785,1731597068198,-638.45,0.00017808,2]
[342222786,1731597068208,-548.09,0.00017808,2]
[342222787,1731597068218,-500.0,0.00017808,2]
[342222788,1731597068228,-500.0,0.00017808,2]
[342222789,1731597068239,-597.15,0.00017808,2]
[342222790,1731597068248,-500.0,0.00017808,2]
[342222791,1731597068262,-500.0,0.00017808,2]
[342222792,1731597068271,-500.0,0.00017808,2]
[342222793,1731597068281,-500.0,0.00017808,2]
[342222794,1731597068290,-500.0,0.00017808,2]
[342222795,1731597068300,-777.17,0.00017808,2]
[342222796,1731597068309,-500.0,0.00017808,2]
[342222797,1731597068319,-500.0,0.00017808,2]
[342222798,1731597068329,-500.0,0.00017808,2]
[342222799,1731597068338,-500.0,0.00017808,2]
[342222800,1731597068348,-640.94,0.00017808,2]
[342222801,1731597068358,-500.0,0.00017808,2]
[342222802,1731597068367,-500.0,0.00017808,2]
[342222803,1731597068377,-500.0,0.00017808,2]
[342222804,1731597068386,-539.44,0.00017808,2]
[342222805,1731597068395,-616.05,0.00017808,2]
[342222806,1731597068404,-535.28,0.00017808,2]
[342222807,1731597068413,-617.75,0.00017808,2]
[342222808,1731597068423,-500.0,0.00017808,2]
[342222809,1731597068437,-525.22551551,0.00017808,2]
[342222810,1731597068447,-500.0,0.00017808,2]
[342222811,1731597068457,-500.0,0.00017808,2]
[342222812,1731597068588,-500.0,0.00017808,2]
[342222813,1731597068598,-636.71,0.00017808,2]
[342222814,1731597068607,-500.0,0.00017808,2]
[342222815,1731597068617,-500.0,0.00017808,2]
[342222816,1731597068627,-500.0,0.00017808,2]
[342222817,1731597068637,-1592.85,0.00017808,2]
[342222818,1731597068647,-500.0,0.00017808,2]
[342222819,1731597068657,-1049.38,0.00017808,2]
[342222820,1731597068666,-589.52,0.00017808,2]
[342222821,1731597068676,-357.44223032,0.00017808,2]
[342222822,1731597068686,-500.0,0.00017808,2]
[342222823,1731597068695,-500.0,0.00017808,2]
[342222824,1731597068705,-500.0,0.00017808,2]
[342222825,1731597068715,-788.8,0.00017808,2]
[342222826,1731597068724,-500.0,0.00017808,2]
[342222827,1731597068733,-950.02,0.00017808,2]
[342222828,1731597068743,-692.64,0.00017808,2]
[342222829,1731597068757,-500.0,0.00017808,2]
[342222830,1731597068766,-1705.94,0.00017808,2]
[342222831,1731597068775,-500.0,0.00017808,2]
[342222832,1731597068786,-500.0,0.00017808,2]
[342222833,1731597068796,-500.0,0.00017808,2]
[342222834,1731597068805,-1211.36,0.00017808,2]
[342222835,1731597068815,-500.0,0.00017808,2]
[342222836,1731597068825,-1341.99,0.00017808,2]
[342222837,1731597068834,-500.0,0.00017808,2]
[342222838,1731597068844,-1503.18,0.00017808,2]
[342222839,1731597068854,-585.8,0.00017808,2]
[342222840,1731597068864,-158.13431074,0.00017808,2]
[342222841,1731597068873,-500.0,0.00017808,2]
[342222842,1731597068882,-500.0,0.00017808,2]
[342222843,1731597068892,-500.0,0.00017808,2]
[342222844,1731597068901,-500.0,0.00017808,2]
[342222845,1731597068914,-882.36,0.00017808,2]
[342222846,1731597068923,-601.02802345,0.00017808,2]
[342222847,1731597068933,-500.0,0.00017808,2]
[342222848,1731597068942,-500.0,0.00017808,2]
[342222849,1731597068952,-1850.19,0.00017808,2]
[342222850,1731597068961,-754.96,0.00017808,2]